bitfinex/quotes_ETHUSD_20220118
["timestamp","ask_amount","ask_price","bid_price","bid_amount"]
[1642546513042,0.1259,3177.3,3176.8,0.00284212]
[1642546513242,0.78719,3177.2,3176.7,0.00341054]
[1642546513842,1.5744062,3177.2,3176.7,0.00341054]
[1642546514046,0.78719,3177.2,3176.7,0.00341054]
[1642546514244,0.91309,3177.2,3176.7,0.00341054]
[1642546515245,0.78719,3177.2,3176.7,0.00341054]
[1642546515444,0.78719,3177.2,3176.6,0.00397896]
[1642546516784,0.1259,3177.1,3176.6,0.00397896]
[1642546516985,0.78717,3177.0,3176.6,0.00397896]
[1642546517186,0.78717,3177.0,3176.5,0.00454739]
[1642546520194,0.78717,3177.0,3176.4,0.17819449]
[1642546520195,7.0126262,3176.8,3176.4,0.17819449]
[1642546520439,7.0,3176.6,3176.2,0.0018055]
[1642546520636,18.46,3176.4,3176.0,0.1259]
[1642546520836,0.5809,3176.3,3176.0,0.1259]
[1642546521034,18.46,3176.2,3176.0,0.1259]
[1642546521238,6.9134,3176.1,3176.0,0.0001]
[1642546521436,25.3734,3176.1,3176.0,0.0001]
[1642546521636,25.46,3176.0,3175.7,0.00251876]
[1642546521841,25.915,3176.0,3175.7,0.00251876]
[1642546522036,0.5809,3176.0,3175.9,0.01152326]
[1642546522438,4.7309,3176.0,3175.9,0.01152326]
[1642546522839,23.1909,3176.0,3175.9,0.01152326]
[1642546523239,4.7309,3176.0,3175.9,0.01152326]
[1642546523440,7.5809,3176.0,3175.9,0.01152326]
[1642546524096,8.5809,3176.0,3175.9,0.01152326]
[1642546524290,8.5809,3176.0,3175.7,0.00251876]
[1642546524291,7.0,3175.9,3175.7,0.00251876]
[1642546524490,27.37861,3175.8,3175.7,1.876e-05]
[1642546524889,28.37861,3175.8,3175.7,0.0011556]
[1642546525092,28.37861,3175.8,3175.7,5.56e-05]
[1642546528145,6.95,3175.7,3174.4,0.00351584]
[1642546528343,0.78758,3175.4,3174.4,0.00351584]
[1642546528544,0.3,3175.3,3174.5,0.00682109]
[1642546528943,0.33349628,3175.3,3174.5,0.00682109]
[1642546529346,0.78758,3175.2,3174.5,0.00682109]
[1642546530243,1.93488,3175.2,3174.5,0.00682109]
[1642546530447,1.1473,3175.2,3174.5,0.00682109]
[1642546532692,0.33349628,3175.3,3174.5,0.00682109]
[1642546534698,1.90870628,3175.3,3174.5,0.00682109]
[1642546535197,0.33349628,3175.3,3174.5,0.00682109]
[1642546536237,0.78753,3175.2,3174.5,0.00682109]
[1642546536842,1.96153,3175.2,3174.5,0.00682109]
[1642546538241,0.7876588,3175.1,3174.5,0.00682109]
[1642546538442,1.96153,3175.2,3174.5,0.00682109]
[1642546538643,0.1259,3175.1,3174.5,0.00682109]
[1642546538842,0.78764,3175.0,3174.5,0.00682109]
[1642546539096,6.95,3174.9,3174.4,0.00703168]
[1642546539287,6.9522737,3174.9,3174.4,0.00703168]
[1642546539487,0.00170527,3174.8,3174.4,0.00703168]
[1642546539887,0.00113685,3174.7,3174.4,0.00703168]
[1642546540289,0.78765,3174.6,3174.4,0.00703168]
[1642546541495,0.00113685,3174.7,3174.4,0.00703168]
[1642546543240,0.00113685,3174.7,3173.8,0.74454168]
[1642546543443,0.00113685,3174.7,3173.9,2.7051005]
[1642546543643,0.00113685,3174.7,3173.9,2.70851104]
[1642546543841,0.00113685,3174.7,3173.9,0.00341054]
[1642546544242,0.00113685,3174.7,3173.8,0.00397896]
[1642546545246,0.77039085,3175.2,3173.9,2.65]
[1642546545443,0.7876363,3175.1,3173.9,2.65]
[1642546545643,0.00113685,3174.9,3174.0,0.00397896]
[1642546546692,0.126,3174.8,3174.0,0.00397896]
[1642546546900,1.3324,3174.8,3174.0,0.00397896]
[1642546547096,1.2064,3174.8,3173.7,0.00568423]
[1642546547299,1.2064,3174.8,3173.6,0.00625266]
[1642546547596,1.2064,3174.8,3173.7,0.126]
[1642546547996,0.78763,3174.7,3173.8,0.00511581]
[1642546548598,0.78763,3174.7,3173.7,1.30568423]
[1642546548802,1.57647685,3174.9,3173.7,1.30568423]
[1642546548803,0.00113685,3174.9,3173.7,1.30568423]
[1642546549000,0.00113685,3174.9,3173.8,2.56656174]
[1642546549201,3.2,3174.7,3173.8,2.56656174]
[1642546549400,3.2,3174.7,3173.9,1.00454739]
[1642546549817,3.2,3174.7,3174.0,0.00397896]
[1642546550641,3.2,3174.7,3174.3,0.3]
[1642546550838,3.2,3174.7,3174.0,0.30397896]
[1642546551037,3.2,3174.7,3174.4,0.00170527]
[1642546551238,3.2,3174.7,3174.1,0.00341054]
[1642546551640,3.2,3174.7,3174.0,0.25341054]
[1642546551839,0.00284212,3174.6,3174.0,0.25341054]
[1642546552039,0.00284212,3174.6,3174.0,0.20341054]
[1642546552244,3.2,3174.7,3174.0,0.20341054]
[1642546552245,0.00227369,3174.5,3174.0,0.20341054]
[1642546552645,0.00170527,3174.4,3174.0,2.75421826]
[1642546552846,0.00170527,3174.4,3174.0,0.20341054]
[1642546553049,0.00113685,3174.3,3174.0,0.20341054]
[1642546553446,0.00284212,3174.6,3174.0,0.20341054]
[1642546553845,3.2,3174.7,3174.0,2.7394105]
[1642546553846,0.00227369,3174.5,3174.0,2.7394105]
[1642546554098,0.00227369,3174.5,3174.0,0.20341054]
[1642546554388,0.00170527,3174.4,3174.0,0.20341054]
[1642546554589,0.00170527,3174.4,3174.0,2.72846395]
[1642546554894,3.685e-05,3174.3,3174.1,0.3139793]
[1642546555088,3.685e-05,3174.3,3174.2,28.54008638]
[1642546555288,0.00174212,3174.6,3174.2,28.66728638]
[1642546555489,0.0018055,3175.9,3174.3,18.63028487]
[1642546555693,0.0018055,3175.9,3174.8,0.78718]
[1642546555889,0.00682108,3175.8,3175.1,0.78718]
[1642546556090,0.00682108,3175.8,3175.1,1.08718]
[1642546556291,0.00625266,3175.7,3175.1,1.38718]
[1642546556491,0.00625266,3175.7,3175.1,1.08718]
[1642546556689,0.00568423,3175.6,3175.1,1.08718]
[1642546556896,0.00568423,3175.6,3175.1,1.38718]
[1642546557094,0.00511581,3175.5,3175.2,2.83407311]
[1642546557494,0.00454739,3175.4,3175.2,3.62128311]
[1642546557843,0.0018055,3175.9,3175.3,3.02280623]
[1642546558251,0.00682108,3175.8,3175.3,3.02280623]
[1642546558646,0.00625266,3175.7,3175.3,3.02280623]
[1642546559047,0.00568423,3175.6,3175.3,3.02280623]
[1642546559448,3.10568423,3175.8,3175.2,0.0437152]
[1642546559649,3.23158423,3175.8,3175.4,0.00113685]
[1642546559949,3.23158423,3175.8,3175.3,0.00170527]
[1642546560147,3.10568423,3175.8,3175.3,0.00170527]
[1642546562219,3.10568423,3175.8,3175.4,0.08737872]
[1642546566345,3.10568423,3175.8,3175.5,0.15735]
[1642546566547,3.10568423,3175.8,3175.5,19.85945]
[1642546566750,3.10568423,3175.8,3175.6,0.02712937]
[1642546567051,3.10568423,3175.8,3175.7,25.76735]
[1642546567250,3.10568423,3175.8,3175.7,25.85450598]
[1642546567450,3.10682108,3175.8,3175.7,7.93715598]
[1642546567652,3.10682108,3175.8,3175.7,8.23715598]
[1642546568250,3.10682108,3175.8,3175.7,1.08715598]
[1642546568650,3.10682108,3175.8,3175.7,0.08715598]
[1642546569708,3.10682108,3175.8,3175.7,8.33844235]
[1642546569909,3.10682108,3175.8,3175.7,5.78715598]
[1642546571510,3.10682108,3175.8,3175.7,6.78715598]
[1642546573044,3.10682108,3175.8,3175.7,7.08715598]
[1642546573245,3.10682108,3175.8,3175.7,1.08715598]
[1642546573447,3.10682108,3175.8,3175.7,0.08715598]
[1642546579501,3.10682108,3175.8,3175.7,8.87262809]
[1642546580000,3.10682108,3175.8,3175.7,28.33262809]
[1642546580454,3.10682108,3175.8,3175.7,26.58423598]
[1642546580850,3.10682108,3175.8,3175.7,8.12423598]
[1642546581458,3.10682108,3175.8,3175.7,10.662714]
[1642546581652,3.10682108,3175.8,3175.7,8.12423598]
[1642546582055,3.10682108,3175.8,3175.7,1.87423598]
[1642546582254,3.10682108,3175.8,3175.7,1.08715598]
[1642546582858,3.10682108,3175.8,3175.7,6.73715598]
[1642546583055,3.10682108,3175.8,3175.7,1.08715598]
[1642546583657,3.10682108,3175.8,3175.7,0.08715598]
[1642546586009,3.11143738,3175.8,3175.7,0.08715598]
[1642546587208,3.11143738,3175.8,3175.7,0.08766913]
[1642546587949,5.78675373,3175.8,3175.7,0.08766913]
[1642546588748,3.11143738,3175.8,3175.7,0.08766913]
[1642546589352,3.1721372,3175.8,3175.7,0.08766913]
[1642546589551,5.84744046,3175.8,3175.7,0.08766913]
[1642546592295,5.84744046,3175.8,3174.7,0.4259]
[1642546592497,5.84744046,3175.8,3174.7,1.21324]
[1642546592696,5.84744046,3175.8,3174.8,0.00454739]
[1642546592900,2.67530326,3175.7,3174.8,0.00454739]
[1642546596248,2.67530326,3175.7,3174.8,0.79185739]
[1642546596647,2.67530326,3175.7,3174.9,0.00397896]
[1642546599794,2.67530326,3175.7,3174.9,0.79126896]
[1642546599993,2.67530326,3175.7,3175.0,0.3]
[1642546600193,2.67530326,3175.7,3175.0,0.30341054]
[1642546600394,2.67530326,3175.7,3175.1,0.00284211]
[1642546601903,2.67530326,3175.7,3174.9,0.00397896]
[1642546603248,3.6,3175.6,3174.8,1.04129896]
[1642546603448,0.00397896,3175.6,3174.8,1.04129896]
[1642546604452,3.97788222,3175.7,3174.8,1.04129896]
[1642546604648,2.64928222,3175.5,3174.8,1.04129896]
[1642546605251,1.3286,3175.7,3174.8,1.04129896]
[1642546605449,1.2027,3175.7,3174.8,1.04129896]
[1642546606801,1.10580348,3175.7,3174.8,1.04129896]
[1642546609109,1.10580348,3175.7,3174.8,1.82857896]
[1642546609613,3.17100035,3175.8,3174.9,18.46]
[1642546609811,3.17100035,3175.8,3175.0,0.78727]
[1642546610011,3.17100035,3175.8,3175.0,1.87791054]
[1642546610211,3.17100035,3175.8,3175.0,3.17791054]
[1642546610444,3.17100035,3175.8,3175.0,2.09064054]
[1642546610647,3.17100035,3175.8,3175.0,2.39064054]
[1642546611145,3.17100035,3175.8,3175.2,0.78719]
[1642546611346,3.17100035,3175.8,3175.2,1.08719]
[1642546611548,3.17100035,3175.8,3175.3,0.00170527]
[1642546612150,3.17100035,3175.8,3175.2,0.00227369]
[1642546612952,3.17100035,3175.8,3175.1,0.00284211]
[1642546613150,3.17100035,3175.8,3175.0,3.37418108]
[1642546613350,0.00341054,3175.7,3175.0,3.37418108]
[1642546613551,0.00341054,3175.7,3175.2,0.3]
[1642546613752,0.00284211,3175.6,3175.2,0.3]
[1642546614197,0.00227369,3175.5,3175.2,0.3]
[1642546614602,0.00170527,3175.4,3175.2,0.3]
[1642546615002,3.17100035,3175.8,3175.2,0.3]
[1642546615003,0.00113684,3175.3,3175.2,0.3]
[1642546616202,0.00113684,3175.3,3175.2,4.98719]
[1642546616401,0.00113684,3175.3,3175.2,4.6259]
[1642546616602,0.00113684,3175.3,3175.2,24.0859]
[1642546616802,0.00113684,3175.3,3175.2,24.24325]
[1642546617202,0.00113684,3175.3,3175.2,24.0859]
[1642546617602,0.00113684,3175.3,3175.2,24.8731]
[1642546617852,0.00113684,3175.3,3175.2,25.03045]
[1642546618045,3.12213719,3175.8,3175.2,21.13045]
[1642546618250,3.07213719,3175.8,3175.2,21.13045]
[1642546618446,0.0022737,3175.7,3175.3,1.3]
[1642546618847,0.00170527,3175.6,3175.3,1.3]
[1642546619249,0.00113685,3175.5,3175.3,1.3]
[1642546620148,0.00113685,3175.5,3175.3,1.25]
[1642546622302,3.05327404,3175.8,3175.3,1.25]
[1642546622703,0.00113685,3175.7,3175.3,1.25]
[1642546623906,0.00113685,3175.7,3175.3,2.0372]
[1642546625111,2.67656294,3175.7,3175.3,2.0372]
[1642546625782,0.00113685,3175.7,3175.3,2.0372]
[1642546626184,0.00113685,3175.7,3175.4,1.5743083]
[1642546626385,2.67542609,3175.6,3175.4,1.8743083]
[1642546626585,2.67542609,3175.6,3175.4,3.1164383]
[1642546626984,2.67542609,3175.6,3175.5,4.05]
[1642546627188,2.67656294,3175.7,3175.5,1.3]
[1642546627385,2.67656294,3175.7,3175.5,2.0871133]
[1642546628587,2.67656294,3175.7,3175.5,2.8742133]
[1642546629400,2.67656294,3175.7,3175.6,18.61735]
[1642546629600,2.67656294,3175.7,3175.6,22.61688678]
[1642546629798,2.67656294,3175.7,3175.6,22.74728678]
[1642546629999,2.67656294,3175.7,3175.6,22.75448678]
[1642546630199,2.67656294,3175.7,3175.6,22.75608678]
[1642546630405,2.67656294,3175.7,3175.6,22.75768678]
[1642546630599,0.00113685,3175.7,3175.6,22.88278678]
[1642546630805,0.00113685,3175.7,3175.6,24.00954642]
[1642546631008,0.00113685,3175.7,3175.6,24.01114642]
[1642546631504,0.00113685,3175.7,3175.6,24.01034642]
[1642546631705,0.00113685,3175.7,3175.6,23.88204642]
[1642546632006,0.00113685,3175.7,3175.6,23.88284642]
[1642546632206,0.00113685,3175.7,3175.6,23.87964642]
[1642546632705,0.00113685,3175.7,3175.6,23.74589813]
[1642546633755,0.00113685,3175.7,3175.6,23.74269813]
[1642546633955,0.00113685,3175.7,3175.6,23.74589813]
[1642546634155,0.00113685,3175.7,3175.6,23.74669813]
[1642546634355,0.00113685,3175.7,3175.6,23.74429813]
[1642546634555,0.00113685,3175.7,3175.6,23.74349813]
[1642546634855,0.00113685,3175.7,3175.6,23.74269813]
[1642546635055,0.00113685,3175.7,3175.6,23.74349813]
[1642546635660,0.00113685,3175.7,3175.6,23.74509813]
[1642546635856,0.02930433,3175.7,3175.6,23.74589813]
[1642546636057,0.02930433,3175.7,3175.6,23.74509813]
[1642546636259,0.02930433,3175.7,3175.6,23.74589813]
[1642546636458,0.02930433,3175.7,3175.6,23.74749813]
[1642546636695,0.02930433,3175.7,3175.6,23.74669813]
[1642546636898,0.02930433,3175.7,3175.6,23.75069813]
[1642546637105,0.02930433,3175.7,3175.6,23.87419813]
[1642546637308,0.00257256,3176.1,3176.0,18.46]
[1642546637506,0.00257256,3176.1,3176.0,20.00175]
[1642546637704,0.00257256,3176.1,3176.0,21.6007]
[1642546637905,0.00257256,3176.1,3176.0,21.6031]
[1642546638104,0.00257256,3176.1,3176.0,21.6023]
[1642546638310,0.00257256,3176.1,3176.0,22.73223748]
[1642546638505,0.00257256,3176.1,3176.0,22.72983748]
[1642546638708,0.00257256,3176.1,3176.0,22.73223748]
[1642546639005,0.00257256,3176.1,3176.0,22.79706721]
[1642546639207,0.003037,3176.6,3176.3,18.46]
[1642546639407,0.003037,3176.6,3176.5,24.34673]
[1642546639613,0.003037,3176.6,3176.5,25.10173]
[1642546639807,0.003037,3176.6,3176.5,26.38468]
[1642546640009,0.003037,3176.6,3176.5,26.37908]
[1642546640207,0.003037,3176.6,3176.5,26.44790973]
[1642546640651,0.003037,3176.6,3176.5,26.44870973]
[1642546640854,0.003037,3176.6,3176.5,26.44790973]
[1642546641052,0.003037,3176.6,3176.5,26.44470973]
[1642546641353,0.003037,3176.6,3176.5,26.57763586]
[1642546641551,0.003037,3176.6,3176.5,26.57923586]
[1642546641756,0.003037,3176.6,3176.5,26.57603586]
[1642546641953,0.003037,3176.6,3176.5,26.58163586]
[1642546642155,0.00333832,3176.8,3176.6,7.0]
[1642546642357,3.832e-05,3176.8,3176.7,29.65203734]
[1642546642556,0.1259,3177.3,3176.8,7.0]
[1642546642756,0.1259,3177.3,3177.0,18.46]
[1642546642957,0.1259,3177.3,3177.2,7.15735]
[1642546643157,2.38236062,3177.9,3177.3,6.95]
[1642546643464,3.19876693,3178.1,3177.5,8.57281]
[1642546643660,0.0018055,3178.1,3177.6,0.61235]
[1642546643858,0.0018055,3178.1,3177.7,0.1258]
[1642546643859,0.01193689,3177.8,3177.7,0.1258]
[1642546644131,0.01193689,3177.8,3177.7,22.07908204]
[1642546644317,0.01193689,3177.8,3177.7,22.38068204]
[1642546644531,0.01193689,3177.8,3177.7,24.23988177]
[1642546644722,0.0018055,3178.1,3177.9,1.57274]
[1642546644922,0.00829714,3178.2,3178.1,7.0]
[1642546645122,0.00829714,3178.2,3178.1,10.80317992]
[1642546645324,0.00829714,3178.2,3178.1,11.93917992]
[1642546645620,0.00829714,3178.2,3178.1,12.08932992]
[1642546645822,0.00829714,3178.2,3178.1,12.08532992]
[1642546646027,0.00306304,3178.3,3178.2,7.0]
[1642546646222,0.00475032,3178.3,3178.2,29.14369589]
[1642546646421,0.00475032,3178.3,3178.2,30.58529589]
[1642546646422,0.00759244,3178.3,3178.2,30.58529589]
[1642546646821,0.00759244,3178.3,3178.2,30.74264589]
[1642546647023,0.00759244,3178.3,3178.2,30.73864589]
[1642546647225,0.00759244,3178.3,3178.2,30.74344589]
[1642546647426,0.00759244,3178.3,3178.2,30.74424589]
[1642546647626,0.00759244,3178.3,3178.2,30.74344589]
[1642546648151,0.00759244,3178.3,3178.2,30.73864589]
[1642546648349,0.00759244,3178.3,3178.2,30.74184589]
[1642546648554,0.00759244,3178.3,3178.2,30.73784589]
[1642546648750,0.00759244,3178.3,3178.2,30.80187562]
[1642546649151,3.7361,3179.2,3178.8,18.46]
[1642546649152,3.69921848,3179.2,3178.8,18.46]
[1642546649350,3.70259304,3179.2,3178.8,18.46]
[1642546649550,3.70259304,3179.2,3178.9,1.0]
[1642546649749,3.70259304,3179.2,3178.9,19.76]
[1642546650355,3.70259304,3179.2,3178.9,19.91735]
[1642546650754,3.57679304,3179.2,3178.9,19.91735]
[1642546651354,3.57679304,3179.2,3178.9,20.7036]
[1642546654913,3.57679304,3179.2,3178.9,1.0]
[1642546655115,0.01225344,3179.1,3178.8,0.3]
[1642546655355,3.57679304,3179.2,3178.7,0.0018068]
[1642546655552,0.00397896,3179.0,3178.7,0.0018068]
[1642546655952,0.00341054,3178.9,3178.7,0.0018068]
[1642546656461,0.00284211,3178.8,3178.7,0.0018068]
[1642546657656,0.00284211,3178.8,3178.7,0.1591068]
[1642546658758,0.00284211,3178.8,3178.7,0.0018068]
[1642546664963,7.00284211,3178.8,3178.7,0.0018068]
[1642546665366,6.7,3178.7,3178.0,0.0018068]
[1642546665566,6.7,3178.7,3178.0,0.00345848]
[1642546665567,6.4626088,3178.1,3178.0,0.00345848]
[1642546665964,6.5884088,3178.1,3178.0,0.00345848]
[1642546666163,10.5365088,3178.1,3178.0,0.00345848]
[1642546666800,15.9503088,3178.1,3178.0,0.00345848]
[1642546668506,1.59439982,3177.9,3177.2,0.0018068]
[1642546668706,0.1258,3177.8,3177.2,0.0018068]
[1642546668905,0.1258,3177.8,3177.3,0.00568424]
[1642546669706,0.78695,3177.7,3177.3,0.00568424]
[1642546672761,3.89040415,3177.7,3177.3,0.00568424]
[1642546672961,3.83381512,3177.7,3177.3,0.00568424]
[1642546673166,0.1258,3177.6,3177.3,0.00568424]
[1642546674206,0.78695,3177.5,3177.3,0.00568424]
[1642546678463,5.7735,3177.4,3177.3,0.00568424]
[1642546682704,4.2274,3178.1,3177.5,0.00454739]
[1642546683306,4.2274,3178.1,3177.6,0.78665]
[1642546683506,0.00337456,3178.2,3177.6,1.08665]
[1642546683703,0.00337456,3178.2,3177.7,0.00341054]
[1642546685749,2.32934562,3178.2,3177.7,0.00341054]
[1642546686149,2.32934562,3178.2,3177.7,0.79005054]
[1642546686549,2.32934562,3178.2,3177.8,0.30284212]
[1642546686750,2.32934562,3178.2,3177.9,0.1258]
[1642546686950,2.32934562,3178.2,3177.9,0.1280737]
[1642546687152,2.32934562,3178.2,3178.0,0.00170527]
[1642546687753,0.00337456,3178.2,3178.0,0.00170527]
[1642546688160,0.00337456,3178.2,3178.1,0.1573]
[1642546688357,0.00337456,3178.2,3178.0,0.00170527]
[1642546688556,0.00337456,3178.2,3178.1,0.00113685]
[1642546688756,0.00337456,3178.2,3178.0,0.00170527]
[1642546692111,0.00337456,3178.2,3177.7,0.00341054]
[1642546692311,0.00337456,3178.2,3177.4,0.00511582]
[1642546692956,0.00337456,3178.2,3177.4,0.79184582]
[1642546693160,0.12917456,3178.2,3177.4,0.79184582]
[1642546693357,0.12917456,3178.2,3177.5,0.00454739]
[1642546694555,0.00337456,3178.2,3177.5,0.00454739]
[1642546694956,0.00337456,3178.2,3177.6,5.0]
[1642546695362,0.00337456,3178.2,3177.7,0.00341054]
[1642546696807,0.00337456,3178.2,3177.6,5.28556424]
[1642546697008,0.00227369,3178.1,3177.6,5.28556424]
[1642546697307,0.00170527,3178.0,3177.6,5.28556424]
[1642546697708,0.00113684,3177.9,3177.6,5.28556424]
[1642546699513,0.00113684,3177.9,3177.6,5.23556424]
[1642546703962,0.00113684,3177.9,3177.7,1.0]
[1642546707311,0.00113684,3177.9,3177.6,7.94859564]
[1642546707514,0.00113684,3177.9,3177.6,8.38377725]
[1642546708161,0.00113684,3177.9,3177.6,5.78667]
[1642546708664,0.00113684,3177.9,3177.7,2.59504514]
[1642546708861,0.00113684,3177.9,3177.7,3.59504514]
[1642546709060,0.00113684,3177.9,3177.8,2.57849617]
[1642546709363,0.00113684,3177.9,3177.8,8.1937]
[1642546709564,0.00113684,3177.9,3177.8,12.23430836]
[1642546709861,0.00113684,3177.9,3177.8,28.26629053]
[1642546710061,0.00113684,3177.9,3177.8,28.26469053]
[1642546710263,0.00113684,3177.9,3177.8,28.72769053]
[1642546710463,0.00674912,3178.2,3178.1,7.68635]
[1642546710666,0.00674912,3178.2,3178.1,10.3535]
[1642546710861,0.00674912,3178.2,3178.1,10.7807]
[1642546711063,6.612463,3179.7,3178.2,25.36]
[1642546711064,1.59083261,3179.2,3178.2,25.36]
[1642546711267,1.59083261,3179.2,3178.3,0.7381]
[1642546711466,0.00397897,3178.6,3178.3,1.7381]
[1642546711705,0.00397897,3178.6,3178.5,7.68631]
[1642546711904,1.59083261,3179.2,3178.5,11.46227523]
[1642546712111,1.59083261,3179.2,3178.6,0.1258]
[1642546712309,0.00682108,3179.1,3178.6,1.5808]
[1642546712503,0.00682108,3179.1,3178.7,2.96468267]
[1642546712704,0.00625266,3179.0,3178.7,2.96468267]
[1642546712906,0.00625266,3179.0,3178.8,1.0]
[1642546713108,4.1475,3179.5,3178.9,2.67859594]
[1642546713309,0.1258,3179.4,3178.9,2.97859594]
[1642546713510,0.00852635,3179.4,3179.0,1.3]
[1642546714108,0.00852635,3179.4,3179.0,0.3]
[1642546714309,0.00852635,3179.4,3178.8,1.6]
[1642546714510,0.00852635,3179.4,3179.1,0.3]
[1642546718863,0.00852635,3179.4,3179.1,1.872591]
[1642546719124,0.00852635,3179.4,3179.2,0.3]
[1642546719505,0.00852635,3179.4,3179.2,0.6]
[1642546720106,0.00852635,3179.4,3179.2,0.3]
[1642546721716,0.00852635,3179.4,3179.2,1.0862803]
[1642546722110,0.00852635,3179.4,3179.2,2.0862803]
[1642546722310,0.00852635,3179.4,3179.2,1.3]
[1642546722514,0.00852635,3179.4,3179.1,1.6]
[1642546722720,0.00852635,3179.4,3179.1,1.38631]
[1642546722964,0.00852635,3179.4,3179.1,2.38631]
[1642546723964,0.00852635,3179.4,3179.1,2.54361]
[1642546725173,0.00604473,3179.8,3179.3,0.0016385]
[1642546725566,0.00113685,3179.6,3179.3,0.0016385]
[1642546725766,0.00113685,3179.6,3179.3,0.1274385]
[1642546725963,0.00113685,3179.6,3179.3,0.4274385]
[1642546726614,0.00113685,3179.6,3179.3,1.4274385]
[1642546726807,0.00113685,3179.6,3179.3,0.3016385]
[1642546727013,0.00113685,3179.6,3179.3,1.3016385]
[1642546727207,0.00113685,3179.6,3179.3,0.3016385]
[1642546727407,0.00113685,3179.6,3179.3,1.0878885]
[1642546728010,0.00113685,3179.6,3179.3,2.0878885]
[1642546728411,0.00113685,3179.6,3179.3,1.0878885]
[1642546728610,0.00113685,3179.6,3179.3,1.3016385]
[1642546728811,0.00113685,3179.6,3179.3,0.3016385]
[1642546729010,0.00113685,3179.6,3179.3,0.0016385]
[1642546733667,0.00113685,3179.6,3179.3,1.0016385]
[1642546733869,0.00113685,3179.6,3179.3,1.3016385]
[1642546734709,0.00113685,3179.6,3179.3,0.3016385]
[1642546735109,0.00113685,3179.6,3179.3,0.0016385]
[1642546736312,13.52903261,3180.1,3180.0,2.82603645]
[1642546736513,9.68331231,3180.2,3180.0,2.82603645]
[1642546736712,6.04491231,3180.2,3180.0,2.82603645]
[1642546737517,3.42735258,3180.2,3180.0,2.82603645]
[1642546738966,2.64104258,3180.2,3180.0,2.82603645]
[1642546739766,2.64104258,3180.2,3180.0,3.12603645]
[1642546740173,2.64104258,3180.2,3180.0,2.82603645]
[1642546740368,2.51534258,3180.2,3180.0,2.82603645]
[1642546742111,1.72903258,3180.2,3180.0,3.12603645]
[1642546743421,1.72903258,3180.2,3180.0,6.32603645]
[1642546743615,1.72903258,3180.2,3180.0,5.25242045]
[1642546743814,1.59083261,3180.2,3180.0,5.25242045]
[1642546744614,1.59083261,3180.4,3180.0,5.25242045]
[1642546744817,1.54083261,3180.4,3180.0,5.25242045]
[1642546745014,1.54538,3180.4,3180.0,5.25242045]
[1642546745221,1.54538,3180.4,3180.0,5.55242045]
[1642546745655,0.00454739,3180.4,3180.0,5.55242045]
[1642546754068,2.39079631,3180.4,3180.0,5.55242045]
[1642546754471,2.39079631,3180.4,3180.0,5.25242045]
[1642546754774,6.24731715,3180.1,3180.0,5.25242045]
[1642546755070,6.25015927,3180.1,3180.0,5.25242045]
[1642546755474,4.65284212,3180.1,3180.0,5.25242045]
[1642546755681,7.03909104,3180.1,3180.0,5.25242045]
[1642546756709,9.13012756,3180.1,3180.0,5.25242045]
[1642546756908,4.48012756,3180.1,3180.0,5.25242045]
[1642546757513,2.09387864,3180.1,3180.0,5.25242045]
[1642546758012,2.09387864,3180.1,3180.0,5.55242045]
[1642546758613,0.00284212,3180.1,3180.0,5.55242045]
[1642546758813,4.55284212,3180.1,3180.0,5.55242045]
[1642546759213,8.24259003,3180.1,3180.0,5.55242045]
[1642546759612,3.69259003,3180.1,3180.0,5.55242045]
[1642546759914,2.09387864,3180.1,3180.0,5.55242045]
[1642546760770,0.00284212,3180.1,3180.0,5.55242045]
[1642546761367,2.09387864,3180.1,3180.0,5.55242045]
[1642546762267,1.60173656,3180.1,3180.0,5.55242045]
[1642546765413,0.00284212,3180.1,3180.0,5.55242045]
[1642546767011,1.60237393,3180.1,3180.0,5.55242045]
[1642546767860,0.00284212,3180.1,3180.0,5.55242045]
[1642546768471,2.09387864,3180.1,3180.0,5.55242045]
[1642546769566,0.00284212,3180.1,3180.0,5.55242045]
[1642546769967,0.00284212,3180.1,3180.0,5.25242045]
[1642546770569,0.78917212,3180.1,3180.0,5.25242045]
[1642546770769,0.00284212,3180.1,3180.0,5.25242045]
[1642546771371,2.09387864,3180.1,3180.0,5.25242045]
[1642546771808,2.09387864,3180.1,3180.0,5.55242045]
[1642546772410,1.60251113,3180.1,3180.0,5.55242045]
[1642546773213,0.00284212,3180.1,3180.0,5.55242045]
[1642546775012,4.02737612,3180.4,3180.0,3.5]
[1642546775459,0.00113685,3180.3,3180.0,3.5]
[1642546776461,2.33738577,3180.4,3180.0,3.5]
[1642546776862,2.33738577,3180.4,3180.1,0.00113685]
[1642546777061,3.30979251,3180.6,3180.1,0.00113685]
[1642546777062,3.96789523,3180.5,3180.1,0.00113685]
[1642546777465,3.96903207,3180.5,3180.1,0.00113685]
[1642546778063,0.78736684,3180.5,3180.1,0.00113685]
[1642546778264,0.00113684,3180.5,3180.1,2.62952523]
[1642546778464,0.00113684,3180.5,3180.1,0.00113685]
[1642546779123,0.00113684,3180.5,3180.1,1.30113685]
[1642546779415,0.00113684,3180.5,3180.2,0.911741]
[1642546779613,0.00113684,3180.5,3180.2,1.511741]
[1642546779814,0.00113684,3180.5,3180.2,4.11002121]
[1642546780013,0.00113684,3180.5,3180.3,1.0]
[1642546780215,0.00113684,3180.5,3180.4,0.1257]
[1642546780417,0.00113684,3180.5,3180.3,1.1257]
[1642546780616,0.00113684,3180.5,3180.3,0.4257]
[1642546781016,0.00113684,3180.5,3180.3,0.1257]
[1642546781417,0.00113684,3180.5,3180.3,1.1257]
[1642546781616,0.00113684,3180.5,3180.4,2.55357374]
[1642546781817,0.00113684,3180.5,3180.4,2.67927374]
[1642546782016,0.00113684,3180.5,3180.4,3.97927374]
[1642546782216,0.00113684,3180.5,3180.4,1.4257]
[1642546782418,0.00113684,3180.5,3180.4,4.01326407]
[1642546783065,0.00113684,3180.5,3180.4,1.4257]
[1642546783264,0.00113684,3180.5,3180.4,4.00617989]
[1642546783668,0.00113684,3180.5,3180.4,1.4257]
[1642546784267,0.00113684,3180.5,3180.4,3.99573537]
[1642546784468,0.00113684,3180.5,3180.4,1.4257]
[1642546785069,0.00113684,3180.5,3180.4,4.16006826]
[1642546785269,0.00113684,3180.5,3180.4,4.99536826]
[1642546785881,0.00113684,3180.5,3180.4,1.261]
[1642546786070,0.00113684,3180.5,3180.4,2.261]
[1642546786267,0.00113684,3180.5,3180.4,4.82692505]
[1642546787310,0.00113684,3180.5,3180.4,4.98422505]
[1642546787509,0.00113684,3180.5,3180.4,4.82692505]
[1642546789618,0.00113684,3180.5,3180.4,0.8353]
[1642546789915,0.00113684,3180.5,3180.2,1.5719306]
[1642546790974,0.00113684,3180.5,3180.3,0.6]